Cogmind - Beta 14 @@@ ROGUE MODE // 2024.09.10 @ 06:26:22 Player: J1ang-5h1 Result: Destroyed by Dirty Bomb Trap Performance ------------- Evolutions (3) 1500 Regions Visited (8) 1600 Robots Destroyed (119) 595 Value Destroyed (3342) 3342 Prototype IDs (15) 300 Alien Tech Used (1) 200 Bonus (317) 317 TOTAL SCORE: 7854 Bonus ------- High Alert Combat Kills 33 Follower Combat Kills 37 Met Data Miner 300 Friendly Fire -53 Cogmind --------- Core Integrity 0/700 Matter 69/300 Energy 100/100 System Corruption 8% Temperature Cool (0) Movement Core (1350) Ox26 Location -6/Proximity Caves Parts ------- > --- POWER (2) -------- (None) > --- PROPULSION (4) --- (None) > --- UTILITY (6) ------ Huge Storage Unit Improved Signal Interpreter Hacking Suite > --- WEAPON (2) ------- (None) > --- INVENTORY (25) --- Subdweller Monowheel Subdweller Monowheel Thermal Generator High-capacity Matter Pod (200) Improved Terrain Scanner Transmission Jammer Improved Weapon Shielding Improved Medium Armor Plating Reactive Plating Insulated Plating Scrap Shield High-powered Tractor Beam Improved Trap Extractor (0/6) Improved Field Recycling Unit (0) Heavy Particle Cannon Dirty Datajack (20) Dirty Bomb Trap Dirty Bomb Trap Fire Trap Fire Trap Fire Trap Fire Trap Peak State ------------ > --- POWER ------------ Heavy Ion Engine > --- PROPULSION ------- Light Treads Light Treads Armored Treads Advanced Treads > --- UTILITY ---------- Improved Heat Sink Huge Storage Unit Improved Signal Interpreter Improved Utility Shielding Insulated Plating Hacking Suite > --- WEAPON ----------- Heavy Particle Cannon Makeshift Axe > --- INVENTORY -------- Improved Deuterium Engine Improved Deuterium Engine Wheel Subdweller Monowheel Subdweller Monowheel Thermal Generator High-capacity Matter Pod Improved Terrain Scanner Transmission Jammer Improved Weapon Shielding Light Armor Plating Hardened Light Armor Plating Hardened Light Armor Plating Reactive Plating Scrap Shield High-powered Tractor Beam Improved Trap Extractor Improved Field Recycling Unit Subdweller Laser Subdweller Laser Shock Bomb Launcher Subdweller Shrapnel Launcher Dirty Datajack Great Maul [Rating: 40] Favorites ----------- Power Reinforced Deuterium Engine Engine Reinforced Deuterium Engine Power Core Light Nuclear Core Propulsion Light Treads Treads Light Treads Leg Aluminum Leg Wheel Subdweller Monowheel Utility Huge Storage Unit Device Improved Heat Sink Storage Huge Storage Unit Processor Improved Signal Interpreter Hackware Hacking Suite Protection Light Armor Plating Weapon Great Maul Energy Gun Beam Rifle Energy Cannon Particle Cannon Ballistic Gun Assault Rifle Launcher Subdweller Shrapnel Launcher Impact Weapon Great Maul Slashing Weapon Makeshift Axe Special Melee Weapon Datajack Build | -11 -10 -10 -8 -7 -7 -7 -7 -6 ------- Run | Yrd Mat Sub Mat Fac Low Low Dat Pro Slots Evolved 6 | . . . 4 2 . . . . Power . | . . . . . . . . . Propulsion 2 | . . . 2 . . . . . Utility 4 | . . . 2 2 . . . . Weapon . | . . . . . . . . . Parts Attached 114 | 2 21 20 49 6 8 7 . 1 Power 18 | . 3 2 10 . 1 1 . 1 Engine 14 | . 3 2 6 . 1 1 . 1 Core 4 | . . . 4 . . . . . Reactor . | . . . . . . . . . Propulsion 28 | . 7 5 14 . 1 1 . . Treads 10 | . 2 . 8 . . . . . Leg 2 | . 1 . . . . 1 . . Wheel 16 | . 4 5 6 . 1 . . . Hover . | . . . . . . . . . Flight . | . . . . . . . . . Utility 31 | 1 3 8 11 4 2 2 . . Device 10 | 1 . 4 5 . . . . . Storage 3 | . 1 1 1 . . . . . Processor 2 | . . . 2 . . . . . Hackware 1 | . . . . 1 . . . . Protection 15 | . 2 3 3 3 2 2 . . Artifact . | . . . . . . . . . Weapon 37 | 1 8 5 14 2 4 3 . . Energy Gun 13 | . 3 1 9 . . . . . Energy Cannon 7 | . . 4 3 . . . . . Ballistic Gun 5 | 1 3 . 1 . . . . . Ballistic Cannon . | . . . . . . . . . Launcher 5 | . . . 1 1 2 1 . . Special Weapon . | . . . . . . . . . Impact Weapon 3 | . . . . . 1 2 . . Slashing Weapon 2 | . . . . 1 1 . . . Piercing Weapon . | . . . . . . . . . Special Melee Weapon 2 | . 2 . . . . . . . Unidentified Prototypes 2 | . . . 1 . 1 . . . Parts Lost 40 | . 2 1 19 1 7 5 . 5 Power 9 | . . 1 4 . 1 1 . 2 Propulsion 12 | . 1 . 5 1 4 1 . . Utility 10 | . . . 5 . 1 2 . 2 Weapon 9 | . 1 . 5 . 1 1 . 1 Highest Loss Streak 13 | . 1 1 13 1 4 6 . 5 To Critical Strikes 1 | . . . . . 1 . . . Average Slot Usage (%) 77 | . 99 99 85 98 84 64 50 54 Engine 10 | . 14 13 5 7 6 9 7 11 Treads 6 | . 11 . 16 29 15 . . . Leg 1 | . 9 . . . . 1 . . Wheel 6 | . 5 27 10 . 2 . . . Device 6 | . 3 7 9 7 7 7 7 6 Storage 9 | . 14 14 9 7 7 7 7 7 Processor 5 | . . . 8 7 7 7 7 7 Hackware 3 | . . . . 3 7 7 7 7 Protection 9 | . 10 6 7 18 14 11 7 6 Energy Gun 4 | . 10 7 11 1 . . . . Energy Cannon 3 | . . 20 3 7 2 . . . Ballistic Gun 2 | . 15 . . . . . . . Launcher 1 | . . . . . 4 7 . . Impact Weapon 3 | . . . . . 1 6 7 6 Peak Build Rating 40 | 7 12 29 31 40 39 33 24 27 Average Rating 22 | 6 9 14 23 38 36 29 24 25 On Entrance 21 | 6 7 12 17 31 39 27 26 24 Naked Turns . | . . . . . . . . . Heaviest Build 124 | 13 96 98 104 108 112 124 103 113 Greatest Support 82 | 20 40 40 82 82 62 10 3 3 Greatest Overweight (x) 41 | . 5 6 31 1 34 41 34 37 Average Overweight (x) 5 | . . 2 2 1 5 28 34 35 Largest Inventory Capacity 25 | 8 25 25 25 25 25 25 25 25 Average Capacity 22 | 8 13 25 25 25 25 25 25 25 Most Carried 25 | 8 25 25 25 25 25 25 25 25 Average Carried 21 | 6 10 24 22 23 25 23 25 24 Final Capacity 25 | 8 25 25 25 25 25 25 25 25 Final Carried 25 | 7 25 25 23 25 25 25 25 23 Class Distribution -------------------- 40% | Mutant 39% | Trapper-Mutant 19% | Scavenger-Mutant Dominant Class ---------------- Mutant | -10/Materials Scavenger-Mutant | -10/Subcaves Scavenger-Mutant | -8/Materials Mutant | -7/Factory Mutant | -7/Lower Caves Trapper-Mutant | -7/Lower Caves Trapper-Mutant | -7/Data Miner Trapper-Mutant | -6/Proximity Caves Resources | -11 -10 -10 -8 -7 -7 -7 -7 -6 ----------- Run | Yrd Mat Sub Mat Fac Low Low Dat Pro Matter Collected 2763 | 312 551 425 896 90 174 159 . 156 Remotely . | . . . . . . . . . Salvage Created 4435 | 213 716 319 1741 417 753 268 . 8 Parts 241 | 17 48 21 103 20 21 11 . . Haulers Intercepted 6 | . 2 . 4 . . . . . Recyclers Shooed 3 | 1 1 . 1 . . . . . Parts Field Recycled . | . . . . . . . . . Retrieved Matter . | . . . . . . . . . Parts Self-Destructed 44 | . . 16 . . 13 15 . . Prevented 10 | . . . . . 9 1 . . Kills | -11 -10 -10 -8 -7 -7 -7 -7 -6 ------- Run | Yrd Mat Sub Mat Fac Low Low Dat Pro Combat Hostiles Destroyed 87 | . 18 9 33 7 13 7 . . Melee 6 | . . . . . 5 1 . . Guns 43 | . 18 . 25 . . . . . Cannons 16 | . . 8 4 3 1 . . . AOE 20 | . . . 4 4 6 6 . . Classes Destroyed 16 | 2 5 1 3 1 2 2 . . Worker 5 | . 2 . 3 . . . . . Builder 2 | . . . 2 . . . . . Tunneler 6 | 6 . . . . . . . . Hauler 6 | . 2 . 4 . . . . . Recycler 5 | 1 1 . 3 . . . . . Minesweeper 1 | . . . . . . 1 . . Operator 1 | . . . 1 . . . . . Watcher 6 | . 3 . 3 . . . . . Swarmer 27 | . 10 3 12 . 2 . . . Grunt 41 | . 8 . 15 5 6 7 . . Brawler 3 | . . . . . 3 . . . Duelist 1 | . . . . . 1 . . . Sentry 8 | . . . 6 1 1 . . . Programmer 1 | . . . . 1 . . . . Subdweller 6 | . . 6 . . . . . . Decomposer 2 | . . . . . . 1 . 1 Samaritan 1 | . . . . . . 1 . . Best Kill Streak 8 | 2 6 3 8 4 8 3 . . Combat Bots Only 8 | . 6 3 5 4 8 3 . . Max Kills in Single Turn 4 | 1 2 1 4 2 1 2 . 1 Gunslinging 1 | . 1 . . . . . . . Exploded 3 | . . . 3 2 1 2 . . Melee 1 | . . . . . 1 1 . . Uniques/NPCs Destroyed . | . . . . . . . . . Combat | -11 -10 -10 -8 -7 -7 -7 -7 -6 -------- Run | Yrd Mat Sub Mat Fac Low Low Dat Pro Hostile Shots Fired 608 | . 86 49 252 59 62 50 . 50 Missed 158 | . 17 15 55 29 15 13 . 14 Damage Taken 6721 | . 681 638 2702 421 989 525 . 765 Core 1468 | . 68 147 532 31 95 86 . 509 Absorbed by Shields . | . . . . . . . . . Redirected to Shielding 85 | . . . . 21 51 13 . . Ignored by Resistances 15 | . . . . 15 . . . . Regen/Repaired (Parts) 20 | . . . 20 . . . . . Core Remaining (%) 39 | 100 . 14 3 . . . . . Volleys Fired 384 | 17 83 38 189 27 21 9 . . Largest 2 | 2 2 2 2 1 1 1 . . Hottest 137 | 40 112 136 137 75 75 40 . . Shots Fired 581 | 34 166 70 254 27 21 9 . . Gun 442 | 34 166 16 226 . . . . . Cannon 108 | . . 54 26 22 6 . . . Launcher 31 | . . . 2 5 15 9 . . Special . | . . . . . . . . . Kinetic 219 | 34 126 . 52 . . 7 . . Thermal 340 | . 40 70 202 22 6 . . . Explosive . | . . . . . . . . . Electromagnetic 22 | . . . . 5 15 2 . . Robot Hit Streak 16 | 5 16 16 12 6 4 3 . . Robot Miss Streak 6 | 5 6 1 6 2 3 3 . . Penetration Max . | . . . . . . . . . Secondary Targets 4 | . 3 . 1 . . . . . Max Gunslinging Chain 1 | . 1 . 1 . . . . . Shots Hit Robots 393 | 15 101 52 171 16 28 9 . 1 Core Hits 199 | 8 35 16 83 18 22 17 . . Critical Kills 2 | . . 1 . . . 1 . . Critical Parts Destroyed 2 | . 1 . . . . . . 1 Critical Strikes 22 | . 4 2 10 . 4 1 . 1 Burn 13 | . 3 . 10 . . . . . Meltdown 1 | . . 1 . . . . . . Destroy 2 | . 1 1 . . . . . . Smash 2 | . . . . . . 1 . 1 Sever 4 | . . . . . 4 . . . Melee Attacks 32 | . 2 . . . 25 4 . 1 Impact 6 | . . . . . 1 4 . 1 Slashing 24 | . . . . . 24 . . . Piercing . | . . . . . . . . . Sneak Attacks 6 | . 2 . . . . 3 . 1 Combat Hostiles . | . . . . . . . . . Follow-up Attacks 1 | . . . . . 1 . . . Damage Inflicted 9660 | 196 1306 998 3633 819 1398 1220 . 90 Guns 4636 | 196 1302 242 2896 . . . . . Cannons 1538 | . . 743 340 380 75 . . . Explosions 2538 | . . . 397 439 834 868 . . Melee 931 | . . . . . 489 352 . 90 Ramming 17 | . 4 13 . . . . . . Kinetic 3062 | 196 886 . 1196 . . 784 . . Thermal 4425 | . 416 985 2437 380 207 . . . Explosive . | . . . . . . . . . Electromagnetic 1225 | . . . . 439 702 84 . . Impact 487 | . . . . . 45 352 . 90 Slashing 444 | . . . . . 444 . . . Piercing . | . . . . . . . . . Highest Corruption 7 | . . . 3 . 7 7 7 7 Average Corruption 6 | . . . 3 . 6 7 7 7 Corruption Purged . | . . . . . . . . . Corruption Blocked . | . . . . . . . . . Effects 263 | . . . 36 . 12 109 35 71 Message Errors 74 | . . . 9 . 4 33 9 19 Matter Fused 67 | . . . 11 . 3 26 10 17 Heat Flow Errors 22 | . . . 2 . 1 7 4 8 Energy Discharges 33 | . . . 5 . 2 13 5 8 Parts Rejected 2 | . . . 1 . . 1 . . Parts Fused 4 | . . . 1 . 1 2 . . Data Loss (minor) 33 | . . . 3 . . 13 5 12 Data Loss (major) 17 | . . . 1 . 1 10 . 5 Misfires 2 | . . . 2 . . . . . Alerts 9 | . . . 1 . . 4 2 2 Overload Shots . | . . . . . . . . . Overflow Damage 231 | . . . . 17 26 98 . 90 Projectiles 17 | . . . . 17 . . . . Explosions 36 | . . . . . 9 27 . . Melee 178 | . . . . . 17 71 . 90 Knockbacks 1 | . . 1 . . . . . . Impact 1 | . . 1 . . . . . . Kinetic . | . . . . . . . . . Secondary . | . . . . . . . . . Self-Inflicted Damage 45 | . . 6 . . 39 . . . Shots 5 | . . . . . 5 . . . Rammed 1 | . . 1 . . . . . . Targets Rammed 2 | . 1 1 . . . . . . Kicked 1 | . 1 . . . . . . . Crushed . | . . . . . . . . . Highest Temperature 362 | . 336 296 362 136 157 271 200 269 Average Temperature 95 | . 107 71 98 50 50 97 86 108 Received Heat Transfer 2467 | . 216 90 1206 180 183 270 . 322 Effects 4 | . . . 2 . . . . 2 Energy Bleed 1 | . . . 1 . . . . . Interference 2 | . . . . . . . . 2 Short Circuit 1 | . . . 1 . . . . . Siege Activations . | . . . . . . . . . Robots Corrupted 2 | . . . . . 1 1 . . Combat Hostiles 1 | . . . . . 1 . . . Parts Fried 7 | . . . . 3 . 2 . 2 Impact Corruptions 6 | . . . . . . 5 . 1 Robots Melted 1 | . . 1 . . . . . . Combat Hostiles 1 | . . 1 . . . . . . Parts Melted 15 | . 3 2 10 . . . . . Heat Transferred 9241 | . 1258 1632 5522 518 311 . . . Parts Sabotaged . | . . . . . . . . . Parts Stolen . | . . . . . . . . . Parts Stripped . | . . . . . . . . . Power Chain Reactions 2 | . . . . . 2 . . . Alert | -11 -10 -10 -8 -7 -7 -7 -7 -6 ------- Run | Yrd Mat Sub Mat Fac Low Low Dat Pro Peak Influence 444 | 35 276 . 444 407 . . . . Initial 191 | . 22 . . 191 . . . . Average 191 | 22 147 . 227 302 . . . . Maximum Alert Level 2 | . 1 . 2 2 . . . . Low Security (%) 55 | 100 68 . 43 23 . . . . Level 1 39 | . 31 . 44 75 . . . . Level 2 5 | . . . 11 . . . . . Level 3 . | . . . . . . . . . Level 4 . | . . . . . . . . . Level 5 . | . . . . . . . . . High Security . | . . . . . . . . . Max Security . | . . . . . . . . . Squads Dispatched 6 | . 3 . 2 1 . . . . Investigation 4 | . 2 . 2 . . . . . Extermination 1 | . . . . 1 . . . . Reinforcement 1 | . 1 . . . . . . . Assault . | . . . . . . . . . Garrison . | . . . . . . . . . Intercept . | . . . . . . . . . Searches Triggered . | . . . . . . . . . Construction Impeded . | . . . . . . . . . Haulers Reinforced . | . . . . . . . . . Active Scanning Responses . | . . . . . . . . . Cargo Convoy Interrupts . | . . . . . . . . . Stealth | -11 -10 -10 -8 -7 -7 -7 -7 -6 --------- Run | Yrd Mat Sub Mat Fac Low Low Dat Pro Distress Signals 8 | . 1 . 7 . . . . . Communications Jammed . | . . . . . . . . . Distress Signals . | . . . . . . . . . Times Spotted 145 | . 26 11 68 9 20 8 . 3 Peak Tracking Total 9 | . 6 3 6 4 9 3 . 3 Tactical Retreats 12 | . 3 . 5 . 4 . . . Traps | -11 -10 -10 -8 -7 -7 -7 -7 -6 ------- Run | Yrd Mat Sub Mat Fac Low Low Dat Pro Traps Triggered 3 | . 2 1 . . . . . . Indirectly . | . . . . . . . . . Trap Hack Attempts 46 | . 46 . . . . . . . Triggered . | . . . . . . . . . Disarmed 1 | . 1 . . . . . . . Reprogrammed 3 | . 3 . . . . . . . Reused 2 | . . 1 . . . . . 1 Traps Extracted . | . . . . . . . . . Installed 2 | . . 1 . . . . . 1 Triggered 3 | . . . . . . 1 . 2 Most Traps Carried 7 | . . . . . . 7 7 7 Machines | -11 -10 -10 -8 -7 -7 -7 -7 -6 ---------- Run | Yrd Mat Sub Mat Fac Low Low Dat Pro Machines Disabled 6 | . 1 . 2 2 1 . . . Max in Single Turn 2 | . 1 . 1 2 1 . . . Machines Repaired . | . . . . . . . . . Machines Dismantled . | . . . . . . . . . Machines Sabotaged . | . . . . . . . . . Overloaded Fab Kills . | . . . . . . . . . Hacking | -11 -10 -10 -8 -7 -7 -7 -7 -6 --------- Run | Yrd Mat Sub Mat Fac Low Low Dat Pro Machines Accessed 31 | . 11 2 13 1 . . 4 . Terminals 16 | . 8 . 8 . . . . . Fabricators . | . . . . . . . . . Repair Stations 2 | . 1 . 1 . . . . . Recycling Units 4 | . 2 . 2 . . . . . Scanalyzers 2 | . . . 2 . . . . . Garrison Access 1 | . . . . 1 . . . . Total Hacks 128 | . 36 3 58 1 . . 30 . Successful 98 | . 21 3 44 . . . 30 . Failed 30 | . 15 . 14 1 . . . . Catastrophic 2 | . 1 . . 1 . . . . Database Lockouts . | . . . . . . . . . Manual 43 | . 23 . 20 . . . . . Terminals 58 | . 28 . 30 . . . . . Fabricators . | . . . . . . . . . Repair Stations 4 | . 2 . 2 . . . . . Recycling Units 11 | . 6 . 5 . . . . . Scanalyzers 21 | . . . 21 . . . . . Garrison Access 1 | . . . . 1 . . . . Terminal Hacks 53 | . 9 3 11 . . . 30 . Record 12 | . . 1 . . . . 11 . Part Schematic 11 | . . . . . . . 11 . Robot Schematic 5 | . . . . . . . 5 . Robot Analysis 8 | . 4 . 4 . . . . . Prototype ID Bank 8 | . 4 . 1 . . . 3 . Open Door 1 | . . 1 . . . . . . Emergency Access Points 1 | . . . 1 . . . . . Recycling Unit Index 1 | . . . 1 . . . . . Alert Level 1 | . . . 1 . . . . . Locate Traps 1 | . . . 1 . . . . . Hauler Manifests 2 | . 1 . 1 . . . . . Zone Layout 1 | . . . 1 . . . . . Release Object 1 | . . 1 . . . . . . Fabricator Hacks . | . . . . . . . . . Repair Station Hacks 3 | . 1 . 2 . . . . . Scan Component 2 | . 1 . 1 . . . . . Repair 1 | . . . 1 . . . . . Recycling Unit Hacks 4 | . 1 . 3 . . . . . Report Inventory 3 | . 1 . 2 . . . . . Retrieve Components 1 | . . . 1 . . . . . Scanalyzer 18 | . . . 18 . . . . . Insert Component 8 | . . . 8 . . . . . Analyze 10 | . . . 10 . . . . . Garrison Access Hacks . | . . . . . . . . . Unauthorized Hacks 20 | . 10 . 10 . . . . . Terminals 17 | . 8 . 9 . . . . . Botnet 4 | . 2 . 2 . . . . . Skim 13 | . 6 . 7 . . . . . Fabricators . | . . . . . . . . . Repair Stations . | . . . . . . . . . Recycling Units 3 | . 2 . 1 . . . . . Tunnel 3 | . 2 . 1 . . . . . Scanalyzers . | . . . . . . . . . Garrison Access . | . . . . . . . . . Data Cores Recovered . | . . . . . . . . . Used . | . . . . . . . . . Hacking Detections 23 | . 10 . 12 1 . . . . Full Trace Events 2 | . . . 2 . . . . . Feedback Events . | . . . . . . . . . Feedback Blocked . | . . . . . . . . . Robot Schematics Acquired 5 | . . . . . . . 5 . Robots Built . | . . . . . . . . . Authchips . | . . . . . . . . . Time . | . . . . . . . . . Total Robot Build Rating . | . . . . . . . . . Part Schematics Acquired 18 | . . . 7 . . . 11 . Parts Built . | . . . . . . . . . Authchips . | . . . . . . . . . Time . | . . . . . . . . . Total Part Build Rating . | . . . . . . . . . Parts Repaired 1 | . . . 1 . . . . . Time 38 | . . . 38 . . . . . Parts Recycled . | . . . . . . . . . Recycled Matter . | . . . . . . . . . Retrieved Matter . | . . . . . . . . . Retrieved Components 5 | . . . 5 . . . . . Parts Scanalyzed 7 | . . . 7 . . . . . Part Schematics Acquired 7 | . . . 7 . . . . . Parts Damaged . | . . . . . . . . . Bothacking | -11 -10 -10 -8 -7 -7 -7 -7 -6 ------------ Run | Yrd Mat Sub Mat Fac Low Low Dat Pro Used RIF Installer . | . . . . . . . . . Robots Hacked 1 | . 1 . . . . . . . Non-combat 1 | . 1 . . . . . . . Combat . | . . . . . . . . . Robot Hacks Applied 1 | . 1 . . . . . . . parse_system 1 | . 1 . . . . . . . Relay Couplers Released . | . . . . . . . . . Fabnet Peak Effective % . | . . . . . . . . . Robots Rewired . | . . . . . . . . . Allies Hacked . | . . . . . . . . . Hacks Repelled . | . . . . . . . . . Allies | -11 -10 -10 -8 -7 -7 -7 -7 -6 -------- Run | Yrd Mat Sub Mat Fac Low Low Dat Pro Total Allies 1 | . . . . . . . . 1 Largest Group 1 | . . . . . . . . 1 Highest-Rated Group 96 | . . . . . . . . 96 Highest-Rated Ally 96 | . . . . . . . . 96 Total Orders . | . . . . . . . . . Ally Attacks 2 | . . . . . . . . 2 Total Damage 91 | . . . . . . . . 91 Kills 1 | . . . . . . . . 1 Allies Corrupted . | . . . . . . . . . Allies Melted . | . . . . . . . . . Intel | -11 -10 -10 -8 -7 -7 -7 -7 -6 ------- Run | Yrd Mat Sub Mat Fac Low Low Dat Pro Robot Analysis Total 8 | . 4 . 4 . . . . . Derelict Logs Recovered 2 | . . 1 . . 1 . . . Drone Launches . | . . . . . . . . . Drone Recoveries . | . . . . . . . . . Exploration | -11 -10 -10 -8 -7 -7 -7 -7 -6 ------------- Run | Yrd Mat Sub Mat Fac Low Low Dat Pro Turns Passed 16731 | 212 2537 2284 2715 418 848 3537 1454 2726 Spaces Moved 4621 | 52 1364 1447 858 148 299 221 84 148 Core 404 | . . . 25 . 1 146 84 148 Treads 1275 | . 497 . 472 148 158 . . . Legs 675 | 52 548 . . . . 75 . . Wheels 2267 | . 319 1447 361 . 140 . . . Hover . | . . . . . . . . . Flight . | . . . . . . . . . Fastest Speed 110 | 120 120 129 110 238 230 820 1750 1350 Average Speed 323 | 120 145 141 240 238 253 1587 1750 1838 Slowest Speed 2100 | 120 320 190 1600 238 1750 2100 1750 1900 Overloaded Moves . | . . . . . . . . . Propulsion Burnouts . | . . . . . . . . . Robots Hopped . | . . . . . . . . . Cave-ins Triggered . | . . . . . . . . . Exploration Rate (%) 42 | 4 100 46 51 4 49 39 71 15 Regions Visited 8 Branch Regions 5 Pre-discovered Areas 7 | . 2 . 4 . . . 1 . Known Exits Taken 6 | . . 1 1 1 1 1 1 . Unknown Exits Taken 2 | 1 1 . . . . . . . Scrap Searched 4 | . . 1 . . 2 1 . . Spaces Dug . | . . . . . . . . . Terrain Destroyed 117 | . . . 43 . 7 67 . . Melee . | . . . . . . . . . Projectile 13 | . . . 13 . . . . . AOE 104 | . . . 30 . 7 67 . . Terrain Rammed . | . . . . . . . . . Walls Destroyed . | . . . . . . . . . Machines Disabled . | . . . . . . . . . Actions | -11 -10 -10 -8 -7 -7 -7 -7 -6 --------- Run | Yrd Mat Sub Mat Fac Low Low Dat Pro Total 5824 | 167 1751 1618 1257 187 357 250 85 152 Wait 439 | 95 194 50 99 . . . 1 . Move 4613 | 51 1363 1446 857 147 298 220 83 148 Hop . | . . . . . . . . . Pick Up 111 | 2 28 27 39 5 2 8 . . Fast Attach 18 | . 6 3 4 . 4 1 . . Attach 40 | 1 2 . 27 3 . 6 . 1 Detach 2 | . . . 1 1 . . . . Swap 57 | 1 13 17 18 3 5 . . . Drop 78 | . 13 34 23 1 3 2 1 1 Fire 384 | 17 83 38 189 27 21 9 . . Melee 31 | . 2 . . . 24 4 . 1 Ram 1 | . . 1 . . . . . . Kick 1 | . 1 . . . . . . . Crush . | . . . . . . . . . Escape Stasis . | . . . . . . . . . Rewire . | . . . . . . . . . Trap 48 | . 46 1 . . . . . 1 Miscellaneous 1 | . . 1 . . . . . . Route ------- -11/Scrapyard -10/Materials (discovered 5 exits: [*Mat x3] / [*Min] / *Sub) -10/Subcaves (discovered 2 exits: *Mat x2) -8/Materials (discovered 2 exits: *Fac x2) -7/Factory (discovered 2 exits: *Low x2) -7/Lower Caves -7/Lower Caves (discovered 2 exits: [*Fac] / *Dat) -7/Data Miner -6/Proximity Caves History --------- Turn | Location | Event 15 | -11/Scrapyard | Discovered new exit (range 3) 213 | -11/Scrapyard | Entered Materials 308 | -10/Materials | Build established: Mutant 408 | -10/Materials | Discovered new exit (range 10) 1419 | -10/Materials | Discovered new exit (range 14) 1553 | -10/Materials | Discovered new exit (range 16) 1671 | -10/Materials | Discovered new exit (range 15) 1695 | -10/Materials | Discovered new exit (range 15) 1837 | -10/Materials | Learned Storage stockpile data 1898 | -10/Materials | Learned Storage stockpile data 1951 | -10/Materials | Loaded intel: 17 trap records 2112 | -10/Materials | Learned 4 Subcaves zone layouts 2171 | -10/Materials | Learned location of 2 exits from Mines 2750 | -10/Materials | Entered Subcaves 2751 | -10/Subcaves | Identified exit to Materials 3093 | -10/Subcaves | Released subatomizers from SUBCON Basin 3350 | -10/Subcaves | Found SUBCON Basin 3721 | -10/Subcaves | A swath of the cavern ceiling suddenly collapsed 3851 | -10/Subcaves | Core integrity fell below 50% 4183 | -10/Subcaves | Build established: Scavenger-Mutant 4435 | -10/Subcaves | Core integrity fell below 20% 4749 | -10/Subcaves | A swath of the cavern ceiling suddenly collapsed 5034 | -10/Subcaves | Entered Materials 5034 | -8/Materials | Evolved 4 slots: Propulsion x2, Utility x2 5739 | -8/Materials | Core integrity fell below 50% 5802 | -8/Materials | Lost 13 parts (3p3n4u3w) 5856 | -8/Materials | Core integrity fell below 20% 6017 | -8/Materials | Build established: Mutant 6326 | -8/Materials | Discovered new exit (range 16) 6513 | -8/Materials | Build established: Scavenger-Mutant 6532 | -8/Materials | Repaired Hpw. Tractor Beam 7018 | -8/Materials | Learned location of Zion (-6) 7051 | -8/Materials | Learned location of 1 exit from Recycling 7090 | -8/Materials | Learned location of 1 exit from Recycling 7093 | -8/Materials | Identified exit to Factory 7094 | -8/Materials | Learned location of Lower Caves (-6) 7095 | -8/Materials | Learned Factory stockpile data 7100 | -8/Materials | Learned location of Lower Caves (-7) 7749 | -8/Materials | Entered Factory 7749 | -7/Factory | Evolved 2 slots: Utility x2 7750 | -7/Factory | Identified exit to Lower Caves 8119 | -7/Factory | Build established: Mutant 8167 | -7/Factory | Entered Lower Caves 8168 | -7/Lower Caves | Encountered a Warlord checkpoint 8576 | -7/Lower Caves | Attracted the attention of an 0b10 outpost 8645 | -7/Lower Caves | Destroyed 8 combat bots 8652 | -7/Lower Caves | Lost 3 parts (1p2n) 8692 | -7/Lower Caves | Found Alien Artifact 8692 | -7/Lower Caves | Identified Core Expander 8692 | -7/Lower Caves | Installed Core Expander, added new Power slot 8765 | -7/Lower Caves | Identified exit to Lower Caves 9001 | -7/Lower Caves | Spotted B-75 Beast 9015 | -7/Lower Caves | Entered another Lower Caves area 9052 | -7/Lower Caves | Lost 6 parts (2n2u2w) 9194 | -7/Lower Caves | Discovered new exit (range 5) 10378 | -7/Lower Caves | Build established: Trapper-Mutant 12238 | -7/Lower Caves | Discovered new exit (range 15) 12534 | -7/Lower Caves | Identified exit to Data Miner 12552 | -7/Lower Caves | Entered Data Miner 12554 | -7/Data Miner | Discovered new exit (range 6) 12904 | -7/Data Miner | Met Data Miner 13324 | -7/Data Miner | Learned location of Section 7 (-2) 13324 | -7/Data Miner | Acquired the access code to Warlord's prototype stash 13604 | -7/Data Miner | Received God Mode back door access code from Data Miner 13989 | -7/Data Miner | Identified exit to Proximity Caves 14006 | -7/Data Miner | Entered Proximity Caves 16701 | -6/Proximity Caves | Core integrity fell below 50% 16721 | -6/Proximity Caves | Escorted by Enhanced Grunt 16727 | -6/Proximity Caves | Core integrity fell below 20% 16732 | -6/Proximity Caves | Destroyed by Dirty Bomb Trap Last Messages --------------- (-120). 16659_ B<6YUKY1/O&HLR&YWN2IUFS:4ERULSJ 16665_ Acquired 5 matter. 16684_ Acquired 29 matter. 16686_ Lgt. Armor Plating destroyed. 16689_ Great Maul destroyed. 16689_ Imp. Heat Sink destroyed. 16692_ Critical hit (Burn: +50). 16693_ Critical hit (Burn: +37). 16695_ Rnf. Deuterium Engine destroyed. 16703_ Dropped Dirty Bomb Trap. 16704_ Installed Dirty Bomb Trap. 16709_ System corrupted: Heat flow error (+255). 16718_ Imp. Deuterium Engine destroyed. 16721_ Enhanced Grunt: "Protecting LRC-V3." 16730_ LQZ2D 6K2CLTIJK49GZUTIU%WBCFZ 16730_ G-50 Soldier destroyed. 16732_ G-67 Veteran triggered Dirty Bomb Trap. 16732_ An explosion rips through the floor. 16732_ G-67 Veteran destroyed. Map ----- +----------------------------------------------------+ | ?????????????????????????????????????????????????? | | ?????????????????????????????????????????????????? | | ?????????????????????????????????????????????????? | | ?????????????????????????????????????????????????? | | ?????????????????????????????????????????????????? | | ?????????????????????????????????????????????????? | | ?????????????????????????????????????????????????? | | ?????????????????????????????????????????????????? | | ?????????????????????????????????????????????????? | | ?????????????????????????????????????????????????? | | ?????????????????????????????????????????????????? | | ?###??###????????????????????????????????????????? | | ## #### ##??????????????????????????????????????? | | # # #?????????????????????????????????????? | | ## #####????????????????????????????????? | | ## % ?????????????????????????????????? | | ### #?????????????????????????????????? | | #?# % #####?????????????#???????????????? | | #?# % ##????####??? #???????????????? | | ### ##???# ##? #???????????????? | | ####### ###?# ## ##??????????????? | | #??### #?# #??????????????? | | #?## % #?# #???????????????? | | ## ### ## ### g* #???????????????? | | ## ## g *%%! #???????????????? | | % ###### ## @ !; ????????? | | #??## #########;### ??????? | | ##### ##?## ##???????????? ???????? | | ?????# #??# #?????????????? ???????? | | ??????## #?## ##??????????????? ????????? | | ???????#%### ###???????????????##????????? | | ???????# ##????????????????????????? | | ???????# #????????????????????????? | | ???????# ##????????????????????????? | | ???????# # #?????????????????????????? | | ??????## ## ####?????????????????????????? | | ??????# ### ##????????????????????????????? | | ??????# #?### ##?????????????????????????????? | | ?????## ##########??????????????????????????????? | | ###### # ###?????????????????????????????????? | | # #?????????????????????????????????? | | # ## ####?????????????????????????????????? | | ####????????????????????????????????????? | | #???????????????????????????????????????? | | ##???????????????????????????????????????? | | ## ### ##????????????????????????????????????????? | | ?###?# #?????????????????????????????????????????? | | ?????###?????????????????????????????????????????? | | ?????????????????????????????????????????????????? | | ?????????????????????????????????????????????????? | +----------------------------------------------------+ Best States ------------- Heat Dissipation 59 Coolant Potential 50 Energy Generation 27 Energy Capacity 480 Matter Stores 300 Matter Capacity 300 Sight Range 16 Robot Scan Range 15 Terrain Scan Density 10 Armor Coverage 300 Resistance: EM 15 Utility Shielding 66 Weapon Shielding 66 Evasion (%) 55 Recoil Reduction 4 Offensive Hacking 10 Item Schematics ----------------- Huge Storage Unit | -8/Materials | Scanalyzed Imp. Signal Interpreter | -8/Materials | Scanalyzed Imp. Trap Extractor | -8/Materials | Scanalyzed Hpw. Tractor Beam | -8/Materials | Scanalyzed Insulated Plating | -8/Materials | Scanalyzed Imp. Utility Shielding | -8/Materials | Scanalyzed Imp. Weapon Shielding | -8/Materials | Scanalyzed Combat Drone Bay | -7/Data Miner | Free Cld. Aerolev Unit | -7/Data Miner | Free Lgt. Regenerative Plating | -7/Data Miner | Free Gravity Neutralizer | -7/Data Miner | Free Imp. Heavy Laser | -7/Data Miner | Free Field Propulsion Drive | -7/Data Miner | Free Remote Force Field | -7/Data Miner | Free Imp. Plasma Cutter | -7/Data Miner | Free Arm. Leg | -7/Data Miner | Free Neutrino Core | -7/Data Miner | Free Lrn. Terrain Scanner | -7/Data Miner | Free Robot Schematics ------------------ A-15 Conveyor | -7/Data Miner | Free S-27 Virus | -7/Data Miner | Free G-50 Soldier | -7/Data Miner | Free M-22 Extractor | -7/Data Miner | Free H-66 Slayer | -7/Data Miner | Free Fabricated ------------ Nothing Alien Tech Used ----------------- Core Expander Achievements -------------- None Challenges ------------ None Game ------ Seed GodSupersonicCasing Manual? 0 Play Time 01:32:32 Cumulative 260.4 hours Start 2024.09.10 @ 04:44:37 End 2024.09.10 @ 06:26:22 Sessions 1 Manual Loads 0 Difficulty Rogue Special Mode None Game No. 196 Rogue 186 Adventurer 0 Explorer 10 Win Type - Total 3 Types 3/0/0/0/0/0/0/0/0 Lore% 65 Gallery% 70 Achievement% 53 Wizard Run 0 Options --------- Layout 2 ASCII 0 Keyboard 0 Movement Arrows Keybinds 1 Fullscreen 1 Font 24/Smallcaps Map View 50x44 Zoom Use 0% Tactical HUD 1 Map Filters NONE Filters NONE Steam 1 RUN: 6b6f920c-b827-44fd-9002-9dc0f352e728